[Event "RUS-chTW Premier 2019"]
[Site "Sochi"]
[Date "2019.05.04"]
[Round "4.4"]
[White "Guseva, Marina"]
[Black "Styazhkina, Anna"]
[Result "0-1"]
[ECO "D10"]
[WhiteElo "2402"]
[BlackElo "2272"]
[Annotator "NA"]
[PlyCount "92"]
[EventDate "2019.04.30"]
[EventType "team-tourn"]
[EventCountry "RUS"]
[SourceTitle "playchess.com"]
[Source "ChessBase"]
[SourceQuality "1"]
[TimeControl "40/5400+30:1800+30"]

1. d4 {[%emt 0:00:00]} d5 {[%emt 0:00:00]} 2. c4 {[%emt 0:00:00]} c6 {[%emt 0:00:00]} 3. Nc3 {[%emt 0:00:00]} Nf6 {[%emt 0:00:06]} 4. e3 {[%emt 0:00:00]} Bf5 {[%emt 0:00:45]} 5. Nf3 {[%emt 0:00:00]} a6 {[%emt 0:00:20]} 6. Bd3 {[%emt 0:00:00]} Bxd3 {[%emt 0:00:27]} 7. Qxd3 {[%emt 0:00:03]} e6 {[%emt 0:00:48]} 8. O-O {[%emt 0:00:05]} Bb4 {[%emt 0:02:23]} 9. a3 {[%emt 0:00:35]} Bxc3 {[%emt 0:00:59]} 10. bxc3 {[%emt 0:00:05]} O-O {[%emt 0:01:56]} 11. a4 {[%emt 0:01:50]} Nbd7 {[%emt 0:03:55]} 12. c5 {[%emt 0:24:05]} Re8 {[%emt 0:04:21]} 13. c4 {[%emt 0:02:49]} Qc7 {[%emt 0:18:58]} 14. Bb2 {[%emt 0:15:35]} Ne4 {[%emt 0:02:32]} 15. Rfc1 {[%emt 0:00:38]} Rad8 {[%emt 0:01:34]} 16. Ne1 {[%emt 0:04:39]} f6 {[%emt 0:08:02]} 17. f3 {[%emt 0:01:37]} Ng5 {[%emt 0:00:07]} 18. Bc3 {[%emt 0:04:53]} Nf8 {[%emt 0:03:40]} 19. Rab1 {[%emt 0:02:35]} Nf7 {[%emt 0:02:56]} 20. Nc2 {[%emt 0:09:02]} Qe7 {[%emt 0:05:27]} 21. cxd5 {[%emt 0:01:55]} exd5 {[%emt 0:00:16]} 22. Be1 {[%emt 0:00:04]} Rd7 {[%emt 0:02:46]} 23. Bg3 {[%emt 0:02:46]} Qe6 {[%emt 0:00:54]} 24. Re1 {[%emt 0:00:24]} f5 {[%emt 0:00:41]} 25. Na1 {[%emt 0:02:59]} g5 {[%emt 0:03:43]} 26. Nb3 {[%emt 0:01:23]} Ng6 {[%emt 0:00:40]} 27. Nd2 {[%emt 0:04:18]} Qf6 {[%emt 0:17:38]} 28. Bf2 {[%emt 0:01:46]} Rf8 {[%emt 0:04:49]} 29. Rb3 {[%emt 0:02:21]} Nd8 {[%emt 0:00:27]} 30. Qb1 {[%emt 0:05:16]} Rdf7 {[%emt 0:02:58]} 31. Rb2 {[%emt 0:02:09]} h5 {[%emt 0:01:38]} 32. Nb3 {[%emt 0:01:00]} h4 {[%emt 0:00:50]} 33. Na5 {[%emt 0:01:19]} Qg7 {[%emt 0:00:15]} 34. h3 {[%emt 0:01:22]} Re7 {[%emt 0:03:25]} 35. Kh1 {[%emt 0:01:11]} Qf7 {[%emt 0:03:36]} 36. Bg1 {[%emt 0:01:27]} Rfe8 {[%emt 0:01:51]} 37. Rb3 {[%emt 0:05:19]} g4 {[%emt 0:02:04]} 38. fxg4 {[%emt 0:02:14]} fxg4 {[%emt 0:00:10]} 39. hxg4 {[%emt 0:00:24]} h3 {[%emt 0:00:33]} 40. Rf1 {[%emt 0:00:00]} hxg2+ {[%emt 0:00:00]} 41. Kxg2 {[%emt 0:01:19]} Qe6 {[%emt 0:02:12]} 42. Kg3 {[%emt 0:00:17]} Rg7 {[%emt 0:02:09]} 43. Nxb7 {[%emt 0:13:10]} Ne5 {[%emt 0:12:00]} 44. Rf5 {[%emt 0:01:07]} Nxg4 {[%emt 0:04:32]} 45. Kf3 {[%emt 0:00:43]} Nxb7 {[%emt 0:01:20]} 46. Ke2 {[%emt 0:01:36]} Na5 {[%emt 0:01:49]} 0-1

[Event "RUS-chTW Premier 2019"]
[Site "Sochi"]
[Date "2019.05.04"]
[Round "4.5"]
[White "Kosteniuk, Alexandra"]
[Black "Sudakova, Irina"]
[Result "0-1"]
[ECO "C43"]
[WhiteElo "2546"]
[BlackElo "2313"]
[Annotator "ChessBase"]
[PlyCount "92"]
[EventDate "2019.04.30"]
[EventType "team-tourn"]
[EventCountry "RUS"]
[SourceTitle "playchess.com"]
[Source "ChessBase"]
[SourceQuality "1"]
[TimeControl "40/5400+30:1800+30"]

1. e4 {[%emt 0:00:00]} e5 {[%emt 0:00:00]} 2. Nf3 {[%emt 0:00:00]} Nf6 {[%emt 0:00:00]} 3. d4 {[%emt 0:00:00]} exd4 {[%emt 0:00:00]} 4. e5 {[%emt 0:01:18]} Ne4 {[%emt 0:00:08]} 5. Qxd4 {[%emt 0:00:58]} d5 {[%emt 0:00:00]} 6. exd6 {[%emt 0:00:54]} Nxd6 {[%emt 0:00:00]} 7. Bg5 {[%emt 0:02:21]} Nc6 {[%emt 0:02:09]} 8. Qc3 {[%emt 0:04:22]} f6 {[%emt 0:00:52]} 9. Be3 {[%emt 0:04:04]} Be6 {[%emt 0:16:34]} 10. Bd3 {[%emt 0:06:43]} Qd7 {[%emt 0:03:08]} 11. O-O {[%emt 0:02:06]} Nf5 {[%emt 0:07:09]} 12. Bc5 {[%emt 0:03:59]} Bxc5 {[%emt 0:05:32]} 13. Qxc5 {[%emt 0:00:08]} Qe7 {[%emt 0:00:28]} 14. Qb5 {[%emt 0:05:33]} Nd6 {[%emt 0:02:28]} 15. Qh5+ {[%emt 0:01:39]} Qf7 {[%emt 0:02:04]} 16. Qc5 {[%emt 0:01:52]} O-O-O {[%emt 0:07:44]} 17. Nbd2 {[%emt 0:02:46]} g5 {[%emt 0:05:32]} 18. Rfe1 {[%emt 0:01:33]} h5 {[%emt 0:11:37]} 19. b4 {[%emt 0:05:24]} Kb8 {[%emt 0:10:43]} 20. b5 {[%emt 0:11:05]} Na5 {[%emt 0:00:21]} 21. Nd4 {[%emt 0:03:28]} Bc8 {[%emt 0:03:14]} 22. Qc3 {[%emt 0:03:37]} Qd5 {[%emt 0:04:59]} 23. N4b3 {[%emt 0:05:12]} Nxb3 {[%emt 0:01:52]} 24. axb3 {[%emt 0:00:02]} Nxb5 {[%emt 0:03:28]} 25. Qxf6 {[%emt 0:00:51]} Rhf8 {[%emt 0:01:14]} 26. Qe5 {[%emt 0:06:50]} Nd4 {[%emt 0:00:33]} 27. Qe3 {[%emt 0:01:49]} a6 {[%emt 0:01:09]} 28. Ne4 {[%emt 0:08:29]} g4 {[%emt 0:02:26]} 29. b4 {[%emt 0:01:17]} h4 {[%emt 0:01:58]} 30. Ra5 {[%emt 0:02:19]} Qg8 {[%emt 0:02:04]} 31. Rg5 {[%emt 0:03:52]} Qh8 {[%emt 0:00:05]} 32. b5 {[%emt 0:07:04]} h3 {[%emt 0:01:48]} 33. c3 {[%emt 0:03:58]} Nf3+ {[%emt 0:02:47]} 34. gxf3 {[%emt 0:00:01]} Rxf3 {[%emt 0:00:06]} 35. Qe2 {[%emt 0:00:12]} Rfxd3 {[%emt 0:00:26]} 36. bxa6 {[%emt 0:00:02]} b6 {[%emt 0:01:23]} 37. Rb1 {[%emt 0:02:03]} Bxa6 {[%emt 0:01:14]} 38. Qxg4 {[%emt 0:00:12]} Bb7 {[%emt 0:00:15]} 39. Re1 {[%emt 0:00:00]} Re8 {[%emt 0:00:00]} 40. f3 {[%emt 0:00:00]} Rxc3 {[%emt 0:00:00]} 41. Rd1 {[%emt 0:06:22]} Bc8 {[%emt 0:11:10]} 42. Qf4 {[%emt 0:04:21]} Rf8 {[%emt 0:01:55]} 43. Qd2 {[%emt 0:03:35]} Rcxf3 {[%emt 0:00:46]} 44. Rg3 {[%emt 0:03:38]} Rxg3+ {[%emt 0:01:36]} 45. hxg3 {[%emt 0:00:44]} Bb7 {[%emt 0:00:59]} 46. Ng5 {[%emt 0:00:26]} h2+ {[%emt 0:02:08]} 0-1

[Event "RUS-chTW Premier 2019"]
[Site "Sochi"]
[Date "2019.05.04"]
[Round "4.6"]
[White "Protopopova, Anastasiya"]
[Black "Shuvalova, Polina"]
[Result "1-0"]
[ECO "A05"]
[WhiteElo "2249"]
[BlackElo "2439"]
[Annotator "NA"]
[PlyCount "123"]
[EventDate "2019.04.30"]
[EventType "team-tourn"]
[EventCountry "RUS"]
[SourceTitle "playchess.com"]
[Source "ChessBase"]
[SourceQuality "1"]
[TimeControl "40/5400+30:1800+30"]

1. Nf3 {[%emt 0:00:00]} Nf6 {[%emt 0:00:23]} 2. g3 {[%emt 0:00:39]} d5 {[%emt 0:03:46]} 3. Bg2 {[%emt 0:00:07]} c6 {[%emt 0:02:17]} 4. O-O {[%emt 0:00:36]} Bf5 {[%emt 0:00:40]} 5. c4 {[%emt 0:01:02]} e6 {[%emt 0:00:13]} 6. cxd5 {[%emt 0:00:09]} exd5 {[%emt 0:00:44]} 7. d3 {[%emt 0:00:05]} Be7 {[%emt 0:00:38]} 8. Qb3 {[%emt 0:00:17]} Qb6 {[%emt 0:01:24]} 9. Qc2 {[%emt 0:00:07]} O-O {[%emt 0:02:26]} 10. Nc3 {[%emt 0:00:08]} Na6 {[%emt 0:06:41]} 11. e4 {[%emt 0:04:04]} Bg6 {[%emt 0:00:35]} 12. Nh4 {[%emt 0:13:02]} Rad8 {[%emt 0:03:19]} 13. a3 {[%emt 0:01:18]} Nc5 {[%emt 0:08:27]} 14. b4 {[%emt 0:10:27]} Ne6 {[%emt 0:00:55]} 15. Na4 {[%emt 0:02:50]} Nd4 {[%emt 0:07:01]} 16. Qb2 {[%emt 0:01:58]} Qb5 {[%emt 0:04:28]} 17. Nxg6 {[%emt 0:02:54]} hxg6 {[%emt 0:00:35]} 18. e5 {[%emt 0:03:30]} Qxa4 {[%emt 0:08:41]} 19. Qxd4 {[%emt 0:00:21]} Ne8 {[%emt 0:00:12]} 20. Bb2 {[%emt 0:09:29]} Nc7 {[%emt 0:03:12]} 21. Qe3 {[%emt 0:04:04]} Rfe8 {[%emt 0:04:05]} 22. f4 {[%emt 0:03:02]} a5 {[%emt 0:03:32]} 23. Bd4 {[%emt 0:05:25]} Ne6 {[%emt 0:02:22]} 24. Bc5 {[%emt 0:19:48]} d4 {[%emt 0:12:26]} 25. Qc1 {[%emt 0:00:38]} Qb5 {[%emt 0:01:31]} 26. Bxe7 {[%emt 0:00:37]} Rxe7 {[%emt 0:00:05]} 27. Qd2 {[%emt 0:00:24]} Ra8 {[%emt 0:01:01]} 28. Rfb1 {[%emt 0:01:21]} Qa6 {[%emt 0:02:22]} 29. Be4 {[%emt 0:03:26]} axb4 {[%emt 0:01:55]} 30. Qxb4 {[%emt 0:01:22]} Rd7 {[%emt 0:00:43]} 31. Rc1 {[%emt 0:00:54]} Qa5 {[%emt 0:02:24]} 32. Qc4 {[%emt 0:03:16]} Qa4 {[%emt 0:01:48]} 33. Qa2 {[%emt 0:00:30]} Re7 {[%emt 0:00:17]} 34. Rc4 {[%emt 0:00:46]} Qa5 {[%emt 0:00:17]} 35. Rcc1 {[%emt 0:03:12]} Qd8 {[%emt 0:00:58]} 36. Qb3 {[%emt 0:02:10]} Ra5 {[%emt 0:00:18]} 37. Qb4 {[%emt 0:02:05]} Rb5 {[%emt 0:00:51]} 38. Qe1 {[%emt 0:00:42]} g5 {[%emt 0:03:41]} 39. a4 {[%emt 0:00:14]} Ra5 {[%emt 0:00:41]} 40. Qf2 {[%emt 0:00:00]} gxf4 {[%emt 0:00:00]} 41. gxf4 {[%emt 0:01:43]} Nc5 {[%emt 0:09:25]} 42. Re1 {[%emt 0:03:12]} Re6 {[%emt 0:01:50]} 43. Kh1 {[%emt 0:01:19]} Rh6 {[%emt 0:04:37]} 44. f5 {[%emt 0:06:00]} Qh4 {[%emt 0:01:47]} 45. Qg2 {[%emt 0:01:07]} Qf4 {[%emt 0:05:42]} 46. e6 {[%emt 0:05:49]} fxe6 {[%emt 0:00:36]} 47. Rf1 {[%emt 0:00:33]} Qh4 {[%emt 0:05:54]} 48. Rg1 {[%emt 0:01:08]} Qe7 {[%emt 0:02:53]} 49. Qd2 {[%emt 0:03:05]} Qh4 {[%emt 0:03:24]} 50. Qg2 {[%emt 0:04:42]} Qf6 {[%emt 0:00:12]} 51. fxe6 {[%emt 0:01:57]} Nxe6 {[%emt 0:00:44]} 52. Raf1 {[%emt 0:01:23]} Qe7 {[%emt 0:00:33]} 53. Bf5 {[%emt 0:01:20]} Re5 {[%emt 0:03:25]} 54. Qg4 {[%emt 0:02:22]} Rh4 {[%emt 0:02:20]} 55. Qg3 {[%emt 0:00:32]} Nf8 {[%emt 0:01:00]} 56. Be4 {[%emt 0:01:54]} Reh5 {[%emt 0:00:20]} 57. Rg2 {[%emt 0:00:15]} Rh3 {[%emt 0:01:31]} 58. Qb8 {[%emt 0:00:38]} Rh6 {[%emt 0:01:26]} 59. Bg6 {[%emt 0:02:26]} Re3 {[%emt 0:01:16]} 60. Rgf2 {[%emt 0:00:25]} Qf6 {[%emt 0:02:16]} 61. Rxf6 {[%emt 0:00:13]} gxf6 {[%emt 0:00:04]} 62. Be4 {[%emt 0:00:37]} 1-0

[Event "RUS-chTW Premier 2019"]
[Site "Sochi"]
[Date "2019.05.04"]
[Round "4.7"]
[White "Bivol, Alina"]
[Black "Lysenko, Margarita"]
[Result "1/2-1/2"]
[ECO "B51"]
[WhiteElo "2393"]
[BlackElo "2211"]
[Annotator "NA"]
[PlyCount "172"]
[EventDate "2019.04.30"]
[EventType "team-tourn"]
[EventCountry "RUS"]
[SourceTitle "playchess.com"]
[Source "ChessBase"]
[SourceQuality "1"]
[TimeControl "40/5400+30:1800+30"]

1. e4 {[%emt 0:00:00]} c5 {[%emt 0:00:00]} 2. Nf3 {[%emt 0:00:06]} d6 {[%emt 0:00:00]} 3. Bb5+ {[%emt 0:00:20]} Nd7 {[%emt 0:00:20]} 4. O-O {[%emt 0:00:31]} a6 {[%emt 0:00:48]} 5. Bd3 {[%emt 0:00:40]} b5 {[%emt 0:30:11]} 6. c3 {[%emt 0:08:15]} Ngf6 {[%emt 0:02:58]} 7. Re1 {[%emt 0:00:07]} Bb7 {[%emt 0:02:26]} 8. Bc2 {[%emt 0:00:55]} e6 {[%emt 0:19:10]} 9. d4 {[%emt 0:00:44]} cxd4 {[%emt 0:00:13]} 10. cxd4 {[%emt 0:00:12]} Be7 {[%emt 0:00:09]} 11. a4 {[%emt 0:01:26]} bxa4 {[%emt 0:04:49]} 12. Nc3 {[%emt 0:02:57]} O-O {[%emt 0:05:55]} 13. Rxa4 {[%emt 0:08:27]} e5 {[%emt 0:02:29]} 14. Qe2 {[%emt 0:00:48]} Re8 {[%emt 0:06:29]} 15. d5 {[%emt 0:01:16]} Nc5 {[%emt 0:01:50]} 16. Ra3 {[%emt 0:00:17]} a5 {[%emt 0:00:51]} 17. Be3 {[%emt 0:01:24]} Qc8 {[%emt 0:10:02]} 18. Rea1 {[%emt 0:04:44]} Bd8 {[%emt 0:01:05]} 19. Qd1 {[%emt 0:02:44]} Ng4 {[%emt 0:02:20]} 20. Bd2 {[%emt 0:01:11]} Bb6 {[%emt 0:00:39]} 21. Be1 {[%emt 0:00:34]} Qd8 {[%emt 0:04:37]} 22. Nd2 {[%emt 0:05:41]} Nf6 {[%emt 0:02:02]} 23. Nc4 {[%emt 0:00:17]} Bc7 {[%emt 0:00:26]} 24. Ne3 {[%emt 0:03:05]} Ba6 {[%emt 0:00:54]} 25. Bd2 {[%emt 0:04:02]} g6 {[%emt 0:00:44]} 26. Qf3 {[%emt 0:00:42]} Nh5 {[%emt 0:00:37]} 27. Nf5 {[%emt 0:02:14]} f6 {[%emt 0:00:41]} 28. Nd1 {[%emt 0:04:18]} Bb5 {[%emt 0:00:31]} 29. Nh6+ {[%emt 0:01:02]} Kf8 {[%emt 0:00:32]} 30. b4 {[%emt 0:00:58]} Na6 {[%emt 0:00:20]} 31. bxa5 {[%emt 0:00:49]} Nf4 {[%emt 0:00:36]} 32. Bxf4 {[%emt 0:02:02]} exf4 {[%emt 0:00:06]} 33. Nc3 {[%emt 0:00:06]} Bd7 {[%emt 0:00:58]} 34. Qxf4 {[%emt 0:00:25]} Kg7 {[%emt 0:00:28]} 35. Ng4 {[%emt 0:00:31]} g5 {[%emt 0:00:30]} 36. Qg3 {[%emt 0:01:19]} h5 {[%emt 0:00:37]} 37. Ne3 {[%emt 0:00:14]} Nb4 {[%emt 0:00:31]} 38. Bd1 {[%emt 0:00:38]} h4 {[%emt 0:00:23]} 39. Qf3 {[%emt 0:00:05]} Rxa5 {[%emt 0:00:22]} 40. Rxa5 {[%emt 0:00:00]} Bxa5 {[%emt 0:00:00]} 41. Qe2 {[%emt 0:03:10]} Bb6 {[%emt 0:08:23]} 42. Rb1 {[%emt 0:00:18]} Bc5 {[%emt 0:01:28]} 43. Ba4 {[%emt 0:01:51]} Bxe3 {[%emt 0:09:41]} 44. Bxd7 {[%emt 0:04:16]} Qxd7 {[%emt 0:00:26]} 45. Qxe3 {[%emt 0:01:03]} Na6 {[%emt 0:01:44]} 46. f4 {[%emt 0:05:25]} Qe7 {[%emt 0:05:59]} 47. fxg5 {[%emt 0:09:58]} fxg5 {[%emt 0:00:07]} 48. Re1 {[%emt 0:08:46]} Nc5 {[%emt 0:01:47]} 49. Qd2 {[%emt 0:00:34]} Qe5 {[%emt 0:01:37]} 50. Rd1 {[%emt 0:02:43]} Rb8 {[%emt 0:02:32]} 51. Rf1 {[%emt 0:01:53]} Rf8 {[%emt 0:00:47]} 52. Rxf8 {[%emt 0:02:18]} Kxf8 {[%emt 0:00:08]} 53. Qe3 {[%emt 0:00:20]} Kg7 {[%emt 0:01:38]} 54. g3 {[%emt 0:01:40]} hxg3 {[%emt 0:00:53]} 55. hxg3 {[%emt 0:02:18]} Kg6 {[%emt 0:00:48]} 56. Kh2 {[%emt 0:00:20]} Qh8+ {[%emt 0:00:30]} 57. Kg2 {[%emt 0:00:12]} Qe5 {[%emt 0:00:17]} 58. Qf3 {[%emt 0:00:33]} Kg7 {[%emt 0:01:02]} 59. Kh3 {[%emt 0:00:20]} Nd7 {[%emt 0:00:24]} 60. Qe3 {[%emt 0:01:03]} Nf6 {[%emt 0:00:16]} 61. Kg2 {[%emt 0:00:45]} Kg6 {[%emt 0:00:29]} 62. Kf3 {[%emt 0:01:07]} Kg7 {[%emt 0:00:49]} 63. Ke2 {[%emt 0:01:59]} Kg6 {[%emt 0:00:20]} 64. Kd3 {[%emt 0:00:59]} Nd7 {[%emt 0:00:41]} 65. Qf3 {[%emt 0:01:18]} Nf6 {[%emt 0:00:31]} 66. Nb5 {[%emt 0:01:49]} Nh5 {[%emt 0:00:25]} 67. g4 {[%emt 0:01:58]} Nf4+ {[%emt 0:00:24]} 68. Kc2 {[%emt 0:00:33]} Qe7 {[%emt 0:00:26]} 69. Nd4 {[%emt 0:02:45]} Qa7 {[%emt 0:00:34]} 70. Nb3 {[%emt 0:03:16]} Qa2+ {[%emt 0:00:27]} 71. Kc3 {[%emt 0:00:02]} Qb1 {[%emt 0:00:34]} 72. Qe3 {[%emt 0:00:59]} Qd1 {[%emt 0:00:24]} 73. Nd2 {[%emt 0:01:11]} Qxg4 {[%emt 0:00:19]} 74. Qb6 {[%emt 0:00:19]} Qh3+ {[%emt 0:00:41]} 75. Kb2 {[%emt 0:00:24]} Nd3+ {[%emt 0:00:24]} 76. Kc2 {[%emt 0:00:41]} Qg3 {[%emt 0:00:25]} 77. Qb5 {[%emt 0:01:30]} Nc5 {[%emt 0:00:25]} 78. Qe8+ {[%emt 0:00:15]} Kg7 {[%emt 0:00:37]} 79. Qe7+ {[%emt 0:00:30]} Kg6 {[%emt 0:00:31]} 80. Qf8 {[%emt 0:02:06]} g4 {[%emt 0:00:40]} 81. Qf1 {[%emt 0:02:21]} Qe5 {[%emt 0:00:26]} 82. Qg2 {[%emt 0:01:46]} Qf4 {[%emt 0:00:26]} 83. Kd1 {[%emt 0:00:15]} Nd3 {[%emt 0:00:51]} 84. Ke2 {[%emt 0:00:27]} Nc1+ {[%emt 0:00:22]} 85. Kd1 {[%emt 0:00:05]} Nd3 {[%emt 0:00:14]} 86. Ke2 {[%emt 0:00:05]} Nc1+ {[%emt 0:00:12]} 1/2-1/2

[Event "RUS-chTW Premier 2019"]
[Site "Sochi"]
[Date "2019.05.04"]
[Round "4.8"]
[White "Geller, Anastasiya"]
[Black "Voit, Daria"]
[Result "1/2-1/2"]
[ECO "B92"]
[WhiteElo "2187"]
[BlackElo "2340"]
[Annotator "NA"]
[PlyCount "142"]
[EventDate "2019.04.30"]
[EventType "team-tourn"]
[EventCountry "RUS"]
[SourceTitle "playchess.com"]
[Source "ChessBase"]
[SourceQuality "1"]
[TimeControl "40/5400+30:1800+30"]

1. e4 {[%emt 0:00:00]} c5 {[%emt 0:00:23]} 2. Nf3 {[%emt 0:00:00]} d6 {[%emt 0:00:11]} 3. d4 {[%emt 0:00:00]} cxd4 {[%emt 0:00:03]} 4. Nxd4 {[%emt 0:00:02]} Nf6 {[%emt 0:00:15]} 5. Nc3 {[%emt 0:00:11]} a6 {[%emt 0:00:05]} 6. Be2 {[%emt 0:00:12]} g6 {[%emt 0:01:20]} 7. Be3 {[%emt 0:09:35]} Bg7 {[%emt 0:00:51]} 8. a4 {[%emt 0:08:15]} O-O {[%emt 0:08:30]} 9. Qd2 {[%emt 0:03:31]} Ng4 {[%emt 0:09:21]} 10. Bxg4 {[%emt 0:00:39]} Bxg4 {[%emt 0:00:04]} 11. Bh6 {[%emt 0:04:04]} Nc6 {[%emt 0:04:33]} 12. Nb3 {[%emt 0:18:43]} Be6 {[%emt 0:09:21]} 13. h4 {[%emt 0:04:38]} Bxb3 {[%emt 0:06:28]} 14. cxb3 {[%emt 0:05:27]} Bxh6 {[%emt 0:05:15]} 15. Qxh6 {[%emt 0:00:16]} f6 {[%emt 0:00:13]} 16. Qd2 {[%emt 0:04:59]} Qb6 {[%emt 0:08:00]} 17. Qd5+ {[%emt 0:10:28]} Kg7 {[%emt 0:00:58]} 18. Rd1 {[%emt 0:02:16]} f5 {[%emt 0:27:34]} 19. h5 {[%emt 0:07:51]} fxe4 {[%emt 0:00:37]} 20. Qd2 {[%emt 0:03:00]} Ne5 {[%emt 0:06:58]} 21. Nxe4 {[%emt 0:00:24]} Qxb3 {[%emt 0:00:30]} 22. hxg6 {[%emt 0:06:15]} hxg6 {[%emt 0:00:04]} 23. Qh6+ {[%emt 0:00:06]} Kf7 {[%emt 0:00:24]} 24. Ng5+ {[%emt 0:04:23]} Ke8 {[%emt 0:00:06]} 25. O-O {[%emt 0:00:49]} Kd7 {[%emt 0:04:08]} 26. Ne4 {[%emt 0:00:55]} b6 {[%emt 0:01:53]} 27. Qg7 {[%emt 0:00:34]} Nc4 {[%emt 0:02:01]} 28. Rfe1 {[%emt 0:04:06]} Rae8 {[%emt 0:01:40]} 29. Qxg6 {[%emt 0:02:04]} Qxb2 {[%emt 0:00:29]} 30. Qg4+ {[%emt 0:00:23]} Kc7 {[%emt 0:01:02]} 31. Rc1 {[%emt 0:00:33]} b5 {[%emt 0:00:14]} 32. axb5 {[%emt 0:00:30]} axb5 {[%emt 0:00:34]} 33. Qe6 {[%emt 0:00:36]} Qd4 {[%emt 0:01:00]} 34. Red1 {[%emt 0:00:30]} Qb6 {[%emt 0:00:52]} 35. Rd5 {[%emt 0:00:33]} Rf4 {[%emt 0:00:41]} 36. Rxd6 {[%emt 0:00:38]} exd6 {[%emt 0:00:32]} 37. Qxe8 {[%emt 0:00:07]} Qc6 {[%emt 0:00:24]} 38. Nxd6 {[%emt 0:00:52]} Qxe8 {[%emt 0:00:43]} 39. Nxe8+ {[%emt 0:00:04]} Kc6 {[%emt 0:00:34]} 40. Ng7 {[%emt 0:00:00]} Rf6 {[%emt 0:00:00]} 41. Nh5 {[%emt 0:02:37]} Rf5 {[%emt 0:02:19]} 42. g4 {[%emt 0:02:00]} Rc5 {[%emt 0:16:35]} 43. Nf6 {[%emt 0:06:53]} Nd2 {[%emt 0:04:51]} 44. Rd1 {[%emt 0:11:57]} Rc2 {[%emt 0:00:06]} 45. Kg2 {[%emt 0:00:06]} b4 {[%emt 0:01:35]} 46. g5 {[%emt 0:00:33]} Nc4 {[%emt 0:00:04]} 47. Rb1 {[%emt 0:03:11]} Kc5 {[%emt 0:00:42]} 48. g6 {[%emt 0:04:30]} Ne3+ {[%emt 0:00:08]} 49. Kf3 {[%emt 0:00:10]} Nf5 {[%emt 0:00:21]} 50. Ne4+ {[%emt 0:00:29]} Kb5 {[%emt 0:00:26]} 51. Kf4 {[%emt 0:00:21]} Ng7 {[%emt 0:00:14]} 52. Ke5 {[%emt 0:01:09]} Rc6 {[%emt 0:04:17]} 53. Nd6+ {[%emt 0:01:25]} Ka4 {[%emt 0:00:04]} 54. Ra1+ {[%emt 0:00:51]} Kb3 {[%emt 0:00:09]} 55. Ra7 {[%emt 0:00:14]} Rc5+ {[%emt 0:00:54]} 56. Ke4 {[%emt 0:01:49]} Nh5 {[%emt 0:00:35]} 57. Rf7 {[%emt 0:01:04]} Rg5 {[%emt 0:00:31]} 58. Rf3+ {[%emt 0:00:38]} Ka2 {[%emt 0:00:58]} 59. Kd4 {[%emt 0:00:29]} Rxg6 {[%emt 0:00:37]} 60. Nc4 {[%emt 0:00:26]} Rg4+ {[%emt 0:01:20]} 61. Kc5 {[%emt 0:00:19]} b3 {[%emt 0:00:24]} 62. Kb4 {[%emt 0:00:35]} Nf4 {[%emt 0:02:07]} 63. Nd2 {[%emt 0:00:44]} Ne2+ {[%emt 0:00:56]} 64. Nc4 {[%emt 0:00:23]} Nd4 {[%emt 0:01:19]} 65. Rf6 {[%emt 0:00:26]} b2 {[%emt 0:01:29]} 66. Nxb2 {[%emt 0:00:27]} Kxb2 {[%emt 0:00:03]} 67. Kc5 {[%emt 0:00:17]} Kc3 {[%emt 0:00:38]} 68. Kd5 {[%emt 0:00:23]} Kd3 {[%emt 0:00:21]} 69. f4 {[%emt 0:00:17]} Ke3 {[%emt 0:00:42]} 70. Rf8 {[%emt 0:00:26]} Nf3 {[%emt 0:00:31]} 71. Re8+ {[%emt 0:00:14]} Kxf4 {[%emt 0:00:23]} 1/2-1/2

[Event "RUS-chTW Premier 2019"]
[Site "Sochi"]
[Date "2019.05.04"]
[Round "4.9"]
[White "Ambartsumova, Karina"]
[Black "Schepetkova, Margarita"]
[Result "1-0"]
[ECO "D11"]
[WhiteElo "2364"]
[BlackElo "2224"]
[Annotator "NA"]
[PlyCount "89"]
[EventDate "2019.04.30"]
[EventType "team-tourn"]
[EventCountry "RUS"]
[SourceTitle "playchess.com"]
[Source "ChessBase"]
[SourceQuality "1"]
[TimeControl "40/5400+30:1800+30"]

1. d4 {[%emt 0:00:00]} d5 {[%emt 0:00:00]} 2. c4 {[%emt 0:00:00]} c6 {[%emt 0:00:00]} 3. Nf3 {[%emt 0:00:15]} Nf6 {[%emt 0:00:00]} 4. g3 {[%emt 0:00:27]} Bg4 {[%emt 0:00:36]} 5. Ne5 {[%emt 0:00:31]} Bf5 {[%emt 0:09:49]} 6. Qb3 {[%emt 0:00:50]} Qb6 {[%emt 0:03:23]} 7. cxd5 {[%emt 0:01:35]} Qxb3 {[%emt 0:10:51]} 8. axb3 {[%emt 0:00:08]} Nxd5 {[%emt 0:00:08]} 9. Bg2 {[%emt 0:01:33]} Nb4 {[%emt 0:04:40]} 10. O-O {[%emt 0:02:11]} f6 {[%emt 0:09:44]} 11. e4 {[%emt 0:04:54]} fxe5 {[%emt 0:01:43]} 12. exf5 {[%emt 0:01:48]} Nc2 {[%emt 0:00:08]} 13. Ra5 {[%emt 0:19:53]} Nxd4 {[%emt 0:00:55]} 14. Rxe5 {[%emt 0:03:58]} Nd7 {[%emt 0:00:21]} 15. Ree1 {[%emt 0:08:27]} Nxf5 {[%emt 0:07:58]} 16. Na3 {[%emt 0:07:57]} g6 {[%emt 0:03:53]} 17. b4 {[%emt 0:11:19]} a6 {[%emt 0:05:06]} 18. Nc4 {[%emt 0:01:46]} O-O-O {[%emt 0:01:30]} 19. Bf4 {[%emt 0:03:02]} e5 {[%emt 0:04:30]} 20. Rxe5 {[%emt 0:08:18]} Bxb4 {[%emt 0:11:50]} 21. Re4 {[%emt 0:02:12]} Rhe8 {[%emt 0:00:39]} 22. Rd1 {[%emt 0:01:21]} Rxe4 {[%emt 0:01:14]} 23. Bxe4 {[%emt 0:00:07]} b5 {[%emt 0:05:25]} 24. Bxf5 {[%emt 0:02:23]} gxf5 {[%emt 0:01:42]} 25. Nd6+ {[%emt 0:00:16]} Bxd6 {[%emt 0:00:58]} 26. Rxd6 {[%emt 0:00:06]} Kc7 {[%emt 0:09:58]} 27. Rh6+ {[%emt 0:00:43]} Kb6 {[%emt 0:00:39]} 28. Rxh7 {[%emt 0:03:34]} Nf6 {[%emt 0:04:52]} 29. Rf7 {[%emt 0:01:51]} Rd1+ {[%emt 0:00:28]} 30. Kg2 {[%emt 0:00:02]} Nd5 {[%emt 0:00:10]} 31. Rxf5 {[%emt 0:02:59]} b4 {[%emt 0:01:00]} 32. h4 {[%emt 0:02:29]} a5 {[%emt 0:00:38]} 33. h5 {[%emt 0:01:04]} a4 {[%emt 0:00:59]} 34. h6 {[%emt 0:01:15]} Nxf4+ {[%emt 0:00:27]} 35. Rxf4 {[%emt 0:00:06]} Kb5 {[%emt 0:00:01]} 36. Rf8 {[%emt 0:04:20]} Rd7 {[%emt 0:00:14]} 37. g4 {[%emt 0:00:17]} c5 {[%emt 0:01:16]} 38. g5 {[%emt 0:01:11]} Rh7 {[%emt 0:00:01]} 39. Kf3 {[%emt 0:02:46]} c4 {[%emt 0:00:12]} 40. g6 {[%emt 0:00:00]} Rxh6 {[%emt 0:00:00]} 41. g7 {[%emt 0:01:02]} Rg6 {[%emt 0:00:33]} 42. g8=Q {[%emt 0:01:00]} Rxg8 {[%emt 0:00:05]} 43. Rxg8 {[%emt 0:00:04]} c3 {[%emt 0:01:33]} 44. bxc3 {[%emt 0:00:35]} b3 {[%emt 0:00:22]} 45. Rg4 {[%emt 0:00:17]} 1-0